Cogmind - Beta 16 @@@ ROGUE MODE // 2026.02.06 @ 20:19:27 Player: Moddy Result: Destroyed by Y-54 Guardian with Gatling Laser Performance ------------- Evolutions (4) 2000 Regions Visited (11) 2200 Robots Destroyed (175) 875 Value Destroyed (7420) 7420 Prototype IDs (6) 120 Alien Tech Used (0) 0 Bonus (3326) 3326 TOTAL SCORE: 15941 Bonus ------- Pacifist 200 High Alert Combat Kills 1354 Follower Combat Kills 172 Entered Garrisons 600 Used RIF Installer 1000 Cogmind --------- Core Integrity 0/850 Matter 270/300 Energy 100/100 System Corruption 0% Temperature Cool (13) Movement Flying (120) Ox1 Location -6/Factory Parts ------- > --- POWER (2) -------- (None) > --- PROPULSION (5) --- Xenon Bombardment Thruster > --- UTILITY (4) ------ IFF Parser Targeting Computer > --- WEAPON (4) ------- Long-range Missile Launcher > --- INVENTORY (5) ---- Deuterium Engine Advanced Weight Redist. System Authchip [R/Combat] Relay Coupler [Brawler] (25) Relay Coupler [Duelist] (25) Peak State ------------ > --- POWER ------------ Fission Core Fission Core > --- PROPULSION ------- Medium Treads Aluminum Leg Flexi-carbon Leg Improved Gravmag System VTOL Module > --- UTILITY ---------- Improved Heat Sink Medium Storage Unit Targeting Computer Improved Medium Armor Plating > --- WEAPON ----------- High-powered Shock Rifle Heavy Plasma Cannon Gauss Rifle Precision Grenade Launcher > --- INVENTORY -------- Deuterium Engine Improved Heat Sink Energy Well Advanced Weight Redist. System Improved Terrain Scan Processor Insulated Plating Authchip [R/Combat] Relay Coupler [Brawler] Relay Coupler [Duelist] Remote Datajack [Rating: 58] Favorites ----------- Power Fission Core Engine Improved Deuterium Engine Power Core Fission Core Propulsion Aluminum Leg Treads Light Treads Leg Aluminum Leg Wheel Compact Wheel Hover Unit Gravmag System Flight Unit VTOL Module Utility Targeting Computer Device Cryofiber Web Storage Medium Storage Unit Processor Targeting Computer Hackware Relay Coupler [Specialist] Protection Improved Medium Armor Plating Weapon Cooled Particle Cannon Energy Gun High-powered Shock Rifle Energy Cannon Cooled Particle Cannon Ballistic Gun Gauss Rifle Ballistic Cannon Assault Cannon Launcher Heavy Missile Launcher Special Weapon Remote Datajack Build | -11 -10 -9 -9 -8 -8 -8 -7 -7 -7 -7 -6 ------- Run | Yrd Mat Mat Min Mat Gar Mat Fac Gar Fac Gar Fac Slots Evolved 8 | . . 2 . 2 . . 2 . . . 2 Power 1 | . . . . . . . . . . . 1 Propulsion 3 | . . 2 . . . . 1 . . . . Utility 2 | . . . . 1 . . 1 . . . . Weapon 2 | . . . . 1 . . . . . . 1 Parts Attached 116 | . 2 12 2 13 2 38 6 5 1 15 20 Power 18 | . . 3 . 1 . 6 1 2 . 2 3 Engine 11 | . . 3 . 1 . 2 1 2 . 1 1 Core 7 | . . . . . . 4 . . . 1 2 Reactor . | . . . . . . . . . . . . Propulsion 41 | . . 4 1 6 . 13 1 1 1 7 7 Treads 8 | . . . . 2 . 2 . . 1 2 1 Leg 27 | . . 3 1 4 . 11 1 1 . 4 2 Wheel 1 | . . 1 . . . . . . . . . Hover 2 | . . . . . . . . . . 1 1 Flight 3 | . . . . . . . . . . . 3 Utility 15 | . 2 1 . 1 1 4 2 . . 2 2 Device 6 | . . . . 1 1 1 1 . . . 2 Storage 5 | . 1 1 . . . 2 1 . . . . Processor 1 | . 1 . . . . . . . . . . Hackware 1 | . . . . . . . . . . 1 . Protection 2 | . . . . . . 1 . . . 1 . Artifact . | . . . . . . . . . . . . Weapon 42 | . . 4 1 5 1 15 2 2 . 4 8 Energy Gun 14 | . . . . 1 . 7 . . . 2 4 Energy Cannon 13 | . . 2 . 3 . 4 2 . . . 2 Ballistic Gun 6 | . . 2 . . 1 . . 2 . . 1 Ballistic Cannon 2 | . . . . . . 2 . . . . . Launcher 6 | . . . 1 1 . 2 . . . 1 1 Special Weapon 1 | . . . . . . . . . . 1 . Impact Weapon . | . . . . . . . . . . . . Slashing Weapon . | . . . . . . . . . . . . Piercing Weapon . | . . . . . . . . . . . . Special Melee Weapon . | . . . . . . . . . . . . Unidentified Prototypes 6 | . . . . 4 . 1 . . . 1 . Corrupted Parts 1 | . . . . . . 1 . . . . . System Corruption 1 | . . . . . . 1 . . . . . Parts Lost 51 | . . 3 . . 1 13 . 4 . 10 20 Power 5 | . . 1 . . . 1 . . . . 3 Propulsion 24 | . . . . . . 6 . 3 . 5 10 Utility 5 | . . . . . . 1 . . . 2 2 Weapon 17 | . . 2 . . 1 5 . 1 . 3 5 Highest Loss Streak 15 | . . 3 . . 1 3 . 3 . 4 15 To Critical Strikes . | . . . . . . . . . . . . Average Backups 8 | . 7 7 6 6 8 8 8 8 9 9 9 Power . | . 1 . . . 1 . 1 1 1 1 1 Propulsion . | . 4 4 3 1 1 . . . . . . Utility 5 | . . 1 2 3 6 7 6 6 7 7 7 Weapon . | . 1 1 . 1 . . 1 1 1 1 . Tool/Special . | . . . . . . . . . . . . Unused Backups 19 | . . . 1 5 1 1 . 2 . . 9 Power 1 | . . . . . . . . . . . 1 Propulsion 4 | . . . 1 3 . . . . . . . Utility 11 | . . . . 1 . 1 . 1 . . 8 Weapon 3 | . . . . 1 1 . . 1 . . . Tool/Special . | . . . . . . . . . . . . Average Slot Usage (%) 95 | . 95 80 100 99 99 94 99 97 90 96 89 Engine 5 | . 14 8 11 9 9 3 3 7 7 6 . Core 3 | . . . . . . 5 3 . . . 11 Treads 4 | . . . . 1 . 1 7 7 13 19 1 Leg 25 | . 28 28 33 34 36 30 30 27 15 13 13 Flight 1 | . . . . . . . . . . . 8 Device 5 | . . . . 8 9 7 7 7 7 4 3 Storage 10 | . 14 11 11 9 9 9 14 15 15 15 7 Processor 8 | . 9 11 11 9 9 9 7 7 7 7 6 Protection 1 | . . . . . . . . . . . 5 Energy Gun 5 | . 28 6 . . . 8 7 5 . 2 10 Energy Cannon 8 | . . 10 7 16 18 3 15 12 7 4 5 Ballistic Gun 4 | . . 3 11 . 4 . . 3 15 13 1 Ballistic Cannon 1 | . . . . . . 8 . . . . . Launcher 3 | . . . 3 9 4 4 . . . . 5 Peak Build Rating 58 | . 7 11 12 41 42 40 41 42 32 36 58 Average Rating 33 | . 6 8 11 37 40 31 37 38 31 31 45 On Entrance 24 | 6 6 7 11 12 41 40 30 41 31 32 32 Avg Prop Armor Cover (%) 7 | . . 2 2 8 . 13 8 8 15 8 3 Naked Turns . | . . . . . . . . . . . . Heaviest Build 65 | 11 16 26 22 40 40 37 42 43 40 44 65 Greatest Support 80 | 20 20 30 40 72 72 80 63 63 20 60 30 Greatest Overweight (x) 6 | . . 1 . 1 . 2 . 1 1 3 6 Average Overweight (x) . | . . . . . . . . . 1 . 2 Largest Inventory Capacity 15 | . 10 15 10 10 10 10 10 10 10 10 10 Average Capacity 9 | . 9 10 10 10 10 10 10 10 10 10 9 Most Carried 10 | . 8 10 10 10 10 10 10 10 10 10 10 Average Carried 9 | . 7 6 9 9 9 9 9 9 10 9 9 Final Capacity 10 | 8 10 10 10 10 10 10 10 10 10 10 5 Final Carried 10 | 6 8 6 10 10 10 10 10 10 10 7 5 Class Distribution -------------------- 46% | Gunner 35% | Scavenger-Gunner 17% | Mutant Dominant Class ---------------- Mutant | -10/Materials Mutant | -9/Materials Mutant | -9/Mines Gunner | -8/Materials Gunner | -8/Garrison Gunner | -8/Materials Gunner | -7/Factory Gunner | -7/Garrison Scavenger-Gunner | -7/Factory Scavenger-Gunner | -7/Garrison Scavenger-Gunner | -6/Factory Resources | -11 -10 -9 -9 -8 -8 -8 -7 -7 -7 -7 -6 ----------- Run | Yrd Mat Mat Min Mat Gar Mat Fac Gar Fac Gar Fac Matter Collected 3401 | 200 . 156 31 314 184 1329 56 172 18 454 487 Remotely . | . . . . . . . . . . . . Salvage Created 6989 | . . 296 60 762 793 1825 333 566 60 811 1483 Parts 343 | . . 18 5 31 49 95 11 27 1 35 71 Haulers Intercepted 13 | . . . . 5 . 4 2 . 1 . 1 Recyclers Shooed 3 | . . 1 . 1 . 1 . . . . . Parts Field Recycled . | . . . . . . . . . . . . Retrieved Matter . | . . . . . . . . . . . . Parts Self-Destructed . | . . . . . . . . . . . . Prevented . | . . . . . . . . . . . . Parts Restored . | . . . . . . . . . . . . Kills | -11 -10 -9 -9 -8 -8 -8 -7 -7 -7 -7 -6 ------- Run | Yrd Mat Mat Min Mat Gar Mat Fac Gar Fac Gar Fac Combat Hostiles Destroyed 126 | . . 7 3 10 19 37 4 10 . 18 18 Guns 40 | . . 2 . . 3 9 3 8 . 8 7 Cannons 46 | . . 3 . 4 13 13 . 2 . 7 4 AOE 39 | . . 2 3 6 3 15 1 . . 2 7 Classes Destroyed 16 | . . 4 1 2 . 7 . . . 1 1 Worker 5 | . . . . . . 3 . . . . 2 Builder 9 | . . . . . . 4 . . . . 5 Tunneler 1 | . . . . . . 1 . . . . . Hauler 13 | . . . . 5 . 4 2 . 1 . 1 Recycler 10 | . . 1 . 2 . 3 . . . . 4 Mechanic 2 | . . . . . . 2 . . . . . Operator 3 | . . . . . . 3 . . . . . Watcher 6 | . . . . 3 . 1 1 . . . 1 Swarmer 22 | . . 3 . 3 5 . . 3 . 4 4 Grunt 60 | . . 2 2 6 5 26 4 2 . 6 7 Brawler 3 | . . . 1 . . 2 . . . . . Duelist 3 | . . . . . . 2 . . . . 1 Sentry 28 | . . 2 . 1 9 6 . 5 . 4 1 Hunter 4 | . . . . . . 1 . . . 1 2 Programmer 5 | . . . . . . . . . . 3 2 Heavy 1 | . . . . . . . . . . . 1 Best Kill Streak 8 | . . 4 3 7 3 8 4 4 1 4 6 Combat Bots Only 5 | . . 4 3 3 3 5 3 4 . 4 3 Max Kills in Single Turn 5 | . . 2 2 3 3 5 3 1 1 2 2 Gunslinging . | . . . . . . . . . . . . Exploded 3 | . . 2 2 3 2 2 1 . . 1 1 Melee . | . . . . . . . . . . . . Uniques/NPCs Destroyed . | . . . . . . . . . . . . Combat | -11 -10 -9 -9 -8 -8 -8 -7 -7 -7 -7 -6 -------- Run | Yrd Mat Mat Min Mat Gar Mat Fac Gar Fac Gar Fac Hostile Shots Fired 823 | . . 42 . 20 89 143 8 154 . 193 174 Missed 242 | . . 5 . 9 27 41 1 57 . 63 39 Hits 581 | . . 37 . 11 62 102 7 97 . 130 135 Melee 1 | . . . . . . 1 . . . . . Projectile 580 | . . 37 . 11 62 101 7 97 . 130 135 Critical Strikes 21 | . . . . . 3 9 . . . 3 6 Damage Taken 8363 | . . 408 . 206 695 2138 111 873 . 1473 2459 Core 1712 | . . 110 . . 43 344 18 111 . 234 852 Absorbed by Shields 60 | . . . . . 60 . . . . . . Ignored by Resistances 54 | . . . . . . 54 . . . . . Core Remaining (%) 69 | 100 100 . 72 . . 29 . . . 48 . Volleys Fired 351 | . . 25 3 33 47 103 9 32 1 47 51 Largest 4 | . . 2 2 3 3 3 3 3 3 3 4 Hottest 246 | . . 108 53 180 99 188 185 110 86 146 246 Shots Fired 883 | . . 38 6 74 117 250 27 95 3 131 142 Gun 370 | . . 20 3 5 17 93 9 43 2 95 83 Cannon 451 | . . 18 . 61 94 134 18 52 1 27 46 Launcher 60 | . . . 3 8 6 23 . . . 7 13 Special 2 | . . . . . . . . . . 2 . Kinetic 248 | . . 5 3 . 17 113 . 12 2 77 19 Thermal 429 | . . 25 . 61 94 77 18 52 1 45 56 Explosive 60 | . . . 3 8 6 23 . . . 7 13 Electromagnetic 144 | . . 8 . 5 . 37 9 31 . . 54 Robot Hit Streak 21 | . . 7 4 8 12 17 7 21 1 10 18 Robot Miss Streak 5 | . . 3 1 4 3 5 1 2 2 5 5 Penetration Max 1 | . . . . . . . . . . 1 1 Secondary Targets 1 | . . 1 . . . . . . . . . Max Gunslinging Chain 1 | . . 1 . . . . . . . . . Shots Hit Robots 488 | . . 19 5 36 59 141 17 62 1 74 74 Core Hits 310 | . . 12 5 28 30 100 12 30 1 36 56 Critical Kills 3 | . . . . 1 . . . . . 2 . Critical Parts Destroyed . | . . . . . . . . . . . . Critical Strikes 9 | . . . . 1 . 6 . . . 2 . Burn 2 | . . . . . . 2 . . . . . Meltdown 2 | . . . . 1 . . . . . 1 . Destroy 1 | . . . . . . . . . . 1 . Blast 4 | . . . . . . 4 . . . . . Melee Attacks . | . . . . . . . . . . . . Impact . | . . . . . . . . . . . . Slashing . | . . . . . . . . . . . . Piercing . | . . . . . . . . . . . . Sneak Attacks . | . . . . . . . . . . . . Combat Hostiles . | . . . . . . . . . . . . Follow-up Attacks . | . . . . . . . . . . . . Damage Inflicted 16462 | . . 395 284 1633 1870 5493 555 1425 22 1761 3024 Guns 4231 | . . 110 17 72 144 927 184 667 22 1004 1084 Cannons 6787 | . . 186 . 1009 1332 1989 218 758 . 555 740 Explosions 5433 | . . 99 267 552 394 2572 153 . . 202 1194 Melee . | . . . . . . . . . . . . Ramming 11 | . . . . . . 5 . . . . 6 Kinetic 2912 | . . 9 17 . 144 1582 . 151 22 731 256 Thermal 6608 | . . 240 . 1009 1332 1058 371 758 . 828 1012 Explosive 4857 | . . . 267 552 394 2365 . . . 202 1077 Electromagnetic 2074 | . . 146 . 72 . 483 184 516 . . 673 Impact . | . . . . . . . . . . . . Slashing . | . . . . . . . . . . . . Piercing . | . . . . . . . . . . . . Highest Corruption 3 | . . . . 2 2 3 . . . 2 . Average Corruption 2 | . . . . 2 2 2 . . . 1 . Corruption Purged . | . . . . . . . . . . . . Corruption Blocked . | . . . . . . . . . . . . Effects 51 | . . . . 3 17 20 . . . 11 . Message Errors 6 | . . . . . 1 2 . . . 3 . Matter Fused 15 | . . . . 2 6 5 . . . 2 . Heat Flow Errors 3 | . . . . . 1 2 . . . . . Energy Discharges 7 | . . . . 1 . 3 . . . 3 . Parts Rejected 1 | . . . . . 1 . . . . . . Parts Fused 1 | . . . . . . . . . . 1 . Data Loss (minor) 8 | . . . . . 3 3 . . . 2 . Data Loss (major) 1 | . . . . . . 1 . . . . . Misfires 3 | . . . . . 1 2 . . . . . Alerts 3 | . . . . . 3 . . . . . . Weapon Failures 3 | . . . . . 1 2 . . . . . Overload Shots 6 | . . . . 2 . . . . . 4 . Effects 1 | . . . . . . . . . . 1 . Short Circuit 1 | . . . . . . . . . . 1 . Overflow Damage 215 | . . 1 . 48 16 86 2 8 . 8 46 Projectiles 128 | . . 1 . 48 16 24 2 8 . 8 21 Explosions 87 | . . . . . . 62 . . . . 25 Melee . | . . . . . . . . . . . . Knockbacks 12 | . . . . . . 12 . . . . . Impact . | . . . . . . . . . . . . Kinetic 11 | . . . . . . 11 . . . . . Secondary 1 | . . . . . . 1 . . . . . Self-Inflicted Damage 387 | . . . . 50 . 148 . . . 98 91 Shots 11 | . . . . 1 . 5 . . . 2 3 Rammed . | . . . . . . . . . . . . Targets Rammed 3 | . . . . . . 2 . . . . 1 Kicked 3 | . . . . . . 2 . . . . 1 Crushed . | . . . . . . . . . . . . Highest Temperature 966 | . . 150 16 130 214 776 392 134 . 300 966 Average Temperature 142 | . . 52 8 34 41 147 173 44 . 99 254 Received Heat Transfer 2598 | . . 69 . 54 267 819 63 288 . 393 645 Effects 54 | . . . . . . 22 1 . . . 31 Shutdowns 12 | . . . . . . 4 . . . . 8 Energy Bleed 5 | . . . . . . 3 . . . . 2 Interference 14 | . . . . . . 4 . . . . 10 Matter Decay 6 | . . . . . . 3 1 . . . 2 Short Circuit 4 | . . . . . . 2 . . . . 2 Damage (minor) 4 | . . . . . . 3 . . . . 1 Damage (major) 7 | . . . . . . 3 . . . . 4 Damage (core) 2 | . . . . . . . . . . . 2 Siege Activations . | . . . . . . . . . . . . Martial Activations . | . . . . . . . . . . . . Shielding Activations . | . . . . . . . . . . . . Robots Disrupted . | . . . . . . . . . . . . Combat Hostiles . | . . . . . . . . . . . . Robots Corrupted . | . . . . . . . . . . . . Combat Hostiles . | . . . . . . . . . . . . Parts Fried 5 | . . . . . . . . 3 . . 2 Impact Corruptions . | . . . . . . . . . . . . Robots Melted 2 | . . . . 1 . . . . . 1 . Combat Hostiles 1 | . . . . . . . . . . 1 . Parts Melted 15 | . . . . 1 5 5 1 . . 3 . Heat Transferred 9793 | . . 458 . 1321 1813 2076 533 938 . 1222 1432 Parts Sabotaged . | . . . . . . . . . . . . Parts Stolen . | . . . . . . . . . . . . Parts Stripped . | . . . . . . . . . . . . Power Chain Reactions 6 | . . . . . . 3 2 . . . 1 Alert | -11 -10 -9 -9 -8 -8 -8 -7 -7 -7 -7 -6 ------- Run | Yrd Mat Mat Min Mat Gar Mat Fac Gar Fac Gar Fac Maximum Alert Level 4 | . . . . 1 3 4 3 3 1 2 1 Low Security (%) 26 | . 100 100 100 81 1 . . . . 5 35 Level 1 26 | . . . . 18 15 . . . 100 55 64 Level 2 24 | . . . . . 34 24 95 79 . 38 . Level 3 14 | . . . . . 47 34 4 20 . . . Level 4 7 | . . . . . . 41 . . . . . Level 5 . | . . . . . . . . . . . . High Security . | . . . . . . . . . . . . Max Security . | . . . . . . . . . . . . Peak Influence 1363 | . 10 71 101 262 978 1363 703 719 371 617 385 Initial 609 | . . . 23 35 143 476 609 404 371 159 323 Average 457 | . . 26 5 77 674 955 637 582 304 396 225 Influence Increases 5078 | . 10 201 101 588 885 1497 139 345 7 558 747 Destroy 0b10 Robot/C 2640 | . . 140 60 260 440 740 80 200 . 360 360 Destroy 0b10 Robot/NC 245 | . . 5 . 50 . 105 15 . 5 . 65 Destroy Leader 498 | . . 40 10 86 10 200 16 . 2 30 104 Allied During Kill 66 | . . . 8 22 36 . . . . . . Successful Hack 50 | . 10 . . . 14 16 5 . . . 5 Disable Machine 285 | . . 15 . 45 60 105 15 15 . . 30 Anti-Garrison Action 350 | . . . . . 200 . . 100 . 50 . Destroy Structure 644 | . . 1 23 125 50 271 8 15 . 73 78 Lose Combat Pursuer 300 | . . . . . 75 60 . 15 . 45 105 Influence Decreases 4836 | . 10 140 69 460 128 1134 902 214 488 169 1122 Entered New Map 2283 | . . . 38 58 78 502 732 174 338 69 294 Time Decay 1691 | . 10 110 31 240 . 502 170 . 150 . 478 Lost Part 510 | . . 30 . . 10 130 . 40 . 100 200 Lost Ally 52 | . . . . 12 40 . . . . . . Purge Threat 300 | . . . . 150 . . . . . . 150 Squads Dispatched 22 | . . 1 . 1 . 9 2 . 1 . 8 Investigation 1 | . . . . . . . . . . . 1 Extermination 3 | . . . . . . . 1 . . . 2 Reinforcement 13 | . . 1 . . . 6 1 . . . 5 Assault 4 | . . . . . . 3 . . 1 . . Garrison 1 | . . . . 1 . . . . . . . Intercept . | . . . . . . . . . . . . Searches Triggered . | . . . . . . . . . . . . Construction Impeded 4 | . . . . . . 2 . . . . 2 Haulers Reinforced 1 | . . . . . . . 1 . . . . Active Scanning Responses . | . . . . . . . . . . . . Cargo Convoy Interrupts . | . . . . . . . . . . . . Stealth | -11 -10 -9 -9 -8 -8 -8 -7 -7 -7 -7 -6 --------- Run | Yrd Mat Mat Min Mat Gar Mat Fac Gar Fac Gar Fac Distress Signals 7 | . . . . 1 . 3 1 . . . 2 Communications Jammed . | . . . . . . . . . . . . Distress Signals . | . . . . . . . . . . . . Times Spotted 168 | . . 9 2 14 21 58 4 11 . 18 31 Peak Tracking Total 8 | . . 5 2 4 4 6 4 4 . 5 8 Tactical Retreats 14 | . . . . . 4 4 . 1 . 2 3 Traps | -11 -10 -9 -9 -8 -8 -8 -7 -7 -7 -7 -6 ------- Run | Yrd Mat Mat Min Mat Gar Mat Fac Gar Fac Gar Fac Traps Triggered 10 | . . 2 . 1 1 . 2 3 . . 1 Indirectly . | . . . . . . . . . . . . Trap Hack Attempts . | . . . . . . . . . . . . Triggered . | . . . . . . . . . . . . Disarmed . | . . . . . . . . . . . . Reprogrammed . | . . . . . . . . . . . . Reused . | . . . . . . . . . . . . Traps Extracted . | . . . . . . . . . . . . Installed . | . . . . . . . . . . . . Triggered . | . . . . . . . . . . . . Most Traps Carried 4 | . . . 4 3 2 . . . . . . Machines | -11 -10 -9 -9 -8 -8 -8 -7 -7 -7 -7 -6 ---------- Run | Yrd Mat Mat Min Mat Gar Mat Fac Gar Fac Gar Fac Machines Disabled 27 | . . 1 . 3 8 7 1 3 . 2 2 Max in Single Turn 2 | . . 1 . 1 1 1 1 1 . 2 2 Garrison Relay 6 | . . . . . 4 . . 2 . . . Phase Generator 1 | . . . . . . . . . . 1 . Machines Repaired . | . . . . . . . . . . . . Machines Dismantled . | . . . . . . . . . . . . Machines Sabotaged . | . . . . . . . . . . . . Overloaded Fab Kills . | . . . . . . . . . . . . Hacking | -11 -10 -9 -9 -8 -8 -8 -7 -7 -7 -7 -6 --------- Run | Yrd Mat Mat Min Mat Gar Mat Fac Gar Fac Gar Fac Machines Accessed 24 | . 2 1 . 4 3 5 3 . 2 . 4 Terminals 12 | . 1 . . 2 3 3 1 . 1 . 1 Fabricators 1 | . . . . . . . 1 . . . . Repair Stations . | . . . . . . . . . . . . Recycling Units 5 | . 1 1 . 1 . 1 . . . . 1 Scanalyzers 3 | . . . . . . 1 . . . . 2 Garrison Access 3 | . . . . 1 . . 1 . 1 . . Total Hacks 44 | . 8 1 . 6 5 11 3 . 3 . 7 Successful 20 | . 4 1 . 3 2 4 2 . 1 . 3 Failed 23 | . 4 . . 3 3 7 1 . 2 . 3 Catastrophic 4 | . . . . . 1 2 . . . . 1 Database Lockouts 1 | . . . . . . . . . . . 1 Manual . | . . . . . . . . . . . . Terminals 27 | . 5 . . 4 5 7 1 . 2 . 3 Fabricators 1 | . . . . . . . 1 . . . . Repair Stations . | . . . . . . . . . . . . Recycling Units 7 | . 3 1 . 1 . 1 . . . . 1 Scanalyzers 6 | . . . . . . 3 . . . . 3 Garrison Access 3 | . . . . 1 . . 1 . 1 . . Terminal Hacks 11 | . 3 . . 2 2 1 1 . . . 2 Open DSF 1 | . . . . . . . 1 . . . . Alert Level 1 | . 1 . . . . . . . . . . Unreport Threat 2 | . . . . 1 . . . . . . 1 Transport Status 1 | . . . . . . . . . . . 1 Investigation Status 1 | . 1 . . . . . . . . . . Zone Layout 3 | . 1 . . 1 . 1 . . . . . Garrison Registry 1 | . . . . . 1 . . . . . . Patrol Navigation 1 | . . . . . 1 . . . . . . Fabricator Hacks . | . . . . . . . . . . . . Repair Station Hacks . | . . . . . . . . . . . . Recycling Unit Hacks 3 | . 1 1 . . . 1 . . . . . Report Inventory 2 | . 1 1 . . . . . . . . . Retrieve Components 1 | . . . . . . 1 . . . . . Scanalyzer 3 | . . . . . . 2 . . . . 1 Retrieve Study 3 | . . . . . . 2 . . . . 1 Garrison Access Hacks 3 | . . . . 1 . . 1 . 1 . . Unlock Access 3 | . . . . 1 . . 1 . 1 . . Unauthorized Hacks . | . . . . . . . . . . . . Terminals . | . . . . . . . . . . . . Fabricators . | . . . . . . . . . . . . Repair Stations . | . . . . . . . . . . . . Recycling Units . | . . . . . . . . . . . . Scanalyzers . | . . . . . . . . . . . . Garrison Access . | . . . . . . . . . . . . Data Cores Recovered . | . . . . . . . . . . . . Used . | . . . . . . . . . . . . Hacking Detections 19 | . 2 . . 4 3 3 3 . 1 . 3 Full Trace Events . | . . . . . . . . . . . . Feedback Events . | . . . . . . . . . . . . Feedback Blocked . | . . . . . . . . . . . . Robot Schematics Acquired . | . . . . . . . . . . . . Robots Built . | . . . . . . . . . . . . Authchips . | . . . . . . . . . . . . Time . | . . . . . . . . . . . . Total Robot Build Rating . | . . . . . . . . . . . . Part Schematics Acquired . | . . . . . . . . . . . . Parts Built . | . . . . . . . . . . . . Authchips . | . . . . . . . . . . . . Time . | . . . . . . . . . . . . Total Part Build Rating . | . . . . . . . . . . . . Part Studies Acquired 3 | . . . . . . 2 . . . . 1 Parts Repaired . | . . . . . . . . . . . . Time . | . . . . . . . . . . . . Parts Recycled . | . . . . . . . . . . . . Recycled Matter . | . . . . . . . . . . . . Retrieved Matter . | . . . . . . . . . . . . Retrieved Components 3 | . . . . . . 3 . . . . . Parts Scanalyzed . | . . . . . . . . . . . . Part Schematics Acquired . | . . . . . . . . . . . . Parts Damaged . | . . . . . . . . . . . . Bothacking | -11 -10 -9 -9 -8 -8 -8 -7 -7 -7 -7 -6 ------------ Run | Yrd Mat Mat Min Mat Gar Mat Fac Gar Fac Gar Fac Used RIF Installer 2 | . . . . . 1 . . 1 . . . Patrol Navigation 1 | . . . . . . . . 1 . . . Robots Hacked . | . . . . . . . . . . . . Non-combat . | . . . . . . . . . . . . Combat . | . . . . . . . . . . . . Robot Hacks Applied . | . . . . . . . . . . . . Relay Couplers Released 21 | . . . . . 14 . . 7 . . . Machine Destruction 21 | . . . . . 14 . . 7 . . . Attached 1 | . . . . . . . . . . 1 . Fabnet Peak Effective % . | . . . . . . . . . . . . Robots Rewired . | . . . . . . . . . . . . Allies Hacked . | . . . . . . . . . . . . Hacks Repelled . | . . . . . . . . . . . . Allies | -11 -10 -9 -9 -8 -8 -8 -7 -7 -7 -7 -6 -------- Run | Yrd Mat Mat Min Mat Gar Mat Fac Gar Fac Gar Fac Total Allies 3 | . . . 2 . 1 . . . . . . Largest Group 2 | . . . 2 2 2 . . . . . . Highest-Rated Group 51 | . . . 39 39 51 . . . . . . Highest-Rated Ally 31 | . . . 31 31 31 . . . . . . Total Orders . | . . . . . . . . . . . . Ally Attacks 23 | . . . 3 10 10 . . . . . . Total Damage 370 | . . . 41 126 203 . . . . . . Kills 6 | . . . . 3 3 . . . . . . Allies Corrupted . | . . . . . . . . . . . . Allies Melted . | . . . . . . . . . . . . Intel | -11 -10 -9 -9 -8 -8 -8 -7 -7 -7 -7 -6 ------- Run | Yrd Mat Mat Min Mat Gar Mat Fac Gar Fac Gar Fac Active Infowar (turns) 27 | . . . . . . . . . . . 27 IFF 27 | . . . . . . . . . . . 27 Robot Analysis Total . | . . . . . . . . . . . . Derelict Logs Recovered 1 | . . . 1 . . . . . . . . Drone Launches . | . . . . . . . . . . . . Drone Recoveries . | . . . . . . . . . . . . Exploration | -11 -10 -9 -9 -8 -8 -8 -7 -7 -7 -7 -6 ------------- Run | Yrd Mat Mat Min Mat Gar Mat Fac Gar Fac Gar Fac Turns Passed 7175 | . 125 339 468 572 1017 1352 341 521 308 897 1235 Spaces Moved 4097 | 1 100 206 373 368 729 727 245 332 172 432 412 Core 48 | . . . . . . . . . . . 48 Treads 370 | . . . . 13 . . . . . 357 . Legs 3647 | 1 100 206 373 355 729 727 245 332 172 75 332 Wheels . | . . . . . . . . . . . . Hover 7 | . . . . . . . . . . . 7 Flight 25 | . . . . . . . . . . . 25 Fastest Speed 50 | 120 120 120 120 120 120 115 115 112 175 160 50 Average Speed 141 | 120 120 123 120 122 120 130 117 122 175 165 243 Slowest Speed 525 | 120 120 190 120 250 120 260 118 175 175 315 525 Overloaded Moves . | . . . . . . . . . . . . Propulsion Burnouts . | . . . . . . . . . . . . Robots Hopped . | . . . . . . . . . . . . Potential Cave-ins . | . . . . . . . . . . . . Cave-ins Triggered . | . . . . . . . . . . . . Exploration Rate (%) 33 | 1 16 17 73 42 80 66 8 35 6 41 11 Regions Visited 11 Branch Regions 1 Pre-discovered Areas . | . . . . . . . . . . . . Known Exits Taken 4 | . . . . 1 . 1 1 . 1 . . Unknown Exits Taken 4 | 1 1 1 1 . . . . . . . . Scrap Searched 1 | . . . 1 . . . . . . . . Spaces Dug 18 | . . . . . . 18 . . . . . Terrain Destroyed 746 | . . . 29 135 33 327 6 . . 128 88 Melee . | . . . . . . . . . . . . Projectile 69 | . . . . 17 . 32 . . . 4 16 AOE 677 | . . . 29 118 33 295 6 . . 124 72 Terrain Rammed . | . . . . . . . . . . . . Walls Destroyed . | . . . . . . . . . . . . Machines Disabled . | . . . . . . . . . . . . Actions | -11 -10 -9 -9 -8 -8 -8 -7 -7 -7 -7 -6 --------- Run | Yrd Mat Mat Min Mat Gar Mat Fac Gar Fac Gar Fac Total 4769 | . 104 249 388 434 791 930 282 377 176 507 531 Wait 94 | . . . 3 1 6 38 7 . . 2 37 Move 4085 | . 99 205 372 367 725 726 245 331 172 431 412 Hop . | . . . . . . . . . . . . Pick Up 41 | . 2 4 6 6 5 2 3 4 1 3 5 Fast Attach 45 | . 2 5 . 2 1 13 1 1 1 7 12 Attach 21 | . . 6 . . 2 4 3 1 . 5 . Detach 1 | . . . . . . . 1 . . . . Swap 68 | . . 3 2 14 . 27 4 3 . 7 8 Drop 55 | . 1 1 2 11 4 15 5 5 1 5 5 Fire 351 | . . 25 3 33 47 103 9 32 1 47 51 Melee . | . . . . . . . . . . . . Ram . | . . . . . . . . . . . . Kick 3 | . . . . . . 2 . . . . 1 Crush . | . . . . . . . . . . . . Escape Stasis 4 | . . . . . . . 4 . . . . Rewire 1 | . . . . . 1 . . . . . . Trap . | . . . . . . . . . . . . Miscellaneous . | . . . . . . . . . . . . Route ------- -11/Scrapyard -10/Materials -9/Materials -9/Mines -8/Materials (discovered 2 exits: Fac / Gar) -8/Garrison (discovered 3 exits: *Mat x3) -8/Materials -7/Factory -7/Garrison -7/Factory -7/Garrison -6/Factory History --------- Turn | Location | Event 1 | -11/Scrapyard | Discovered new exit (range 0) 1 | -11/Scrapyard | Entered Materials 107 | -10/Materials | Discovered new exit (range 16) 126 | -10/Materials | Entered another Materials area 126 | -9/Materials | Evolved 2 slots: Propulsion x2 253 | -9/Materials | Lost 3 parts (1p2w) 305 | -9/Materials | Build established: Mutant 432 | -9/Materials | Discovered new exit (range 7) 465 | -9/Materials | Entered Mines 491 | -9/Mines | Learned location of 1 exit from Materials 494 | -9/Mines | Found a hidden stash of uninstalled traps 532 | -9/Mines | A weapon hastily lodged in a ceiling crevice suddenly fell to the ground 684 | -9/Mines | Met a Derelict testing a Signal Generator 689 | -9/Mines | Found Signal Generator 773 | -9/Mines | Received a Rocket Launcher from a helpful Derelict 915 | -9/Mines | Discovered new exit (range 11) 933 | -9/Mines | Entered Materials 933 | -8/Materials | Accompanied by 2 allies 933 | -8/Materials | Evolved 2 slots: Utility x1, Weapon x1 934 | -8/Materials | Identified exit to Factory 938 | -8/Materials | Led the pair of lost Derelicts to an unsafe place 1244 | -8/Materials | Build established: Gunner 1448 | -8/Materials | Garrison activated, responded to threat 1503 | -8/Materials | Identified exit to Garrison 1505 | -8/Materials | Entered Garrison 1505 | -8/Garrison | Accompanied by 1 ally 1507 | -8/Garrison | Triggered checkpoint 1529 | -8/Garrison | Rescued a captive Derelict 1581 | -8/Garrison | Garrison Relay disabled 1682 | -8/Garrison | Triggered checkpoint 1699 | -8/Garrison | Triggered checkpoint 1769 | -8/Garrison | Triggered checkpoint 1795 | -8/Garrison | Garrison Relay disabled 1836 | -8/Garrison | Discovered new exit (range 13) 1999 | -8/Garrison | Triggered checkpoint 2093 | -8/Garrison | Discovered new exit (range 15) 2120 | -8/Garrison | Garrison Relay disabled 2145 | -8/Garrison | Attempted to access garrison exit controls, blocked by remote lockdown 2195 | -8/Garrison | Triggered checkpoint 2207 | -8/Garrison | Garrison Relay disabled 2263 | -8/Garrison | Discovered new exit (range 80) 2263 | -8/Garrison | Discovered new exit (range 50) 2263 | -8/Garrison | Discovered new exit (range 22) 2411 | -8/Garrison | Triggered checkpoint 2496 | -8/Garrison | Installed Relay Interface Framework 2522 | -8/Garrison | Entered Materials 2922 | -8/Materials | First assault squad dispatched 3184 | -8/Materials | Core integrity fell below 50% 3210 | -8/Materials | Lost 3 parts (1p1u1w) 3857 | -8/Materials | Discovered exit to Factory (range 5) 3874 | -8/Materials | Entered Factory 3874 | -7/Factory | Evolved 2 slots: Propulsion x1, Utility x1 4215 | -7/Factory | Identified exit to Garrison 4215 | -7/Factory | Entered Garrison 4347 | -7/Garrison | Triggered checkpoint 4359 | -7/Garrison | Garrison Relay disabled 4425 | -7/Garrison | Triggered checkpoint 4496 | -7/Garrison | Discovered new exit (range 12) 4515 | -7/Garrison | Triggered checkpoint 4574 | -7/Garrison | Expanded RIF knowledge: Patrol Navigation 4618 | -7/Garrison | Garrison Relay disabled 4687 | -7/Garrison | Lost 3 parts (2n1w) 4736 | -7/Garrison | Entered Factory 5044 | -7/Factory | Identified exit to Garrison 5044 | -7/Factory | Entered Garrison 5093 | -7/Garrison | Build established: Scavenger-Gunner 5142 | -7/Garrison | Triggered checkpoint 5603 | -7/Garrison | Triggered checkpoint 5648 | -7/Garrison | Lost 3 parts (1n1u1w) 5779 | -7/Garrison | Phase Generator disabled 5791 | -7/Garrison | Discovered new exit (range 7) 5824 | -7/Garrison | Triggered checkpoint 5895 | -7/Garrison | Core integrity fell below 50% 5925 | -7/Garrison | Lost 4 parts (1n1u2w) 5941 | -7/Garrison | Entered Factory 5941 | -6/Factory | Evolved 2 slots: Power x1, Weapon x1 6727 | -6/Factory | Central database locked down 7106 | -6/Factory | Core integrity fell below 50% 7112 | -6/Factory | Core integrity fell below 20% 7141 | -6/Factory | Lost 15 parts (3p5n2u5w) 7176 | -6/Factory | Destroyed by Y-54 Guardian with Gatling Laser Last Messages --------------- 07104_ U-05 Engineer builds a Wall. 07105_ Acquired Imp. Deuterium Engine. 07107_ Power failure, Imp. Deuterium Engine shutdown. 07107_ K-01 Serf collects debris. 07108_ Overheating: Energy bleed (-12). 07108_ Acquired Carbon-fiber Leg. 07109_ Imp. Deuterium Engine destroyed. 07110_ K-01 Serf collects debris. 07110_ Acquired 110 matter. 07110_ Carbon-fiber Leg destroyed. 07112_ Overheating: Core damaged (-153). 07112_ Acquired 43 matter. 07113_ Overheating: Broken Targeting Computer damaged (-2). 07116_ Overheating: Core damaged (-110). 07116_ R-10 Processor collects Shock Absorption System. 07121_ Overheating: Energy bleed (-18). 07127_ Acquired Lrn. Missile Launcher. 07129_ K-01 Serf cleans the TF Node. 07144_ Acquired Xenon Bombardment Thruster. 07149_ Acquired IFF Parser. Map ----- +----------------------------------------------------+ | #???? #??????????????????????????????????????? | | #?? #??????????????????????????????????????? | | # #??????????????????????????????????????? | | + #??????????????????????????????????????? | | # #??????????????????????????????????????? | | #? #??????????????????????????????????????? | | #? #??????????????????????????????????????? | | # #??????????????????????????????????????? | | # ?????????????????????????????????????????? | | ??????????????????????????????????????????? | | #???????????????????????????????????????????? | | # #???????????????????????????????????????????? | | ##??????????????????????????????????????????? | | % #??????????????????????????????????????????? | | % # ##??????????????????????????????????????????? | | ###???????????????????????????????????????????? | | ###????????????????????????????????????????????? | | ###????????????????????????????????????????????? | | #?????????????????????????#????????????????????? | | #???????????????????????? #????????????????????? | | #???????????????????????? #????????????????????? | | #?????????????????????### ###??????????????????? | | #+#?????????????????????# ##### ?????????? | | ? #???????############### "T #????????? | | ??#???????+ "" / Y #????????? | | ??????????# ! ! ######@ #????????? | | ??#######+# """#????# ##### ????????????? | | ??+ Y"#????###+###??????????????????? | | ??####### """#?????????????????????????????? | | ????????# #?????????????????????????????? | | ????????# +?????????????????????????????? | | ????????# #?????????????????????????????? | | ###?????# #######+####???????????????????????????? | | ????# #???????????????????????????? | | ####??###?????# #???????????????????????????? | | " #??????????#!! #???????????????????????????? | | " #??????????#!!! #???????????????????????????? | | " #??????????#!! #???????????????????????????? | | #??????????# #???????????????????????????? | | #??????????####+###???????????????????????????? | | #???????????# #???????????????????????????? | | +############### " #???????????????????????????? | | "T #???????????????????????????? | | ############### #???????????????????????????? | | #?????????????# #???????????????????????????? | | #?????????????## ##???????????????????????????? | | #????#########?# #????????????????????????????? | | #????# #?# #????????????????????????????? | | #????# """ #?# #????????????????????????????? | | #????# """ ### ##???????????????????????????? | +----------------------------------------------------+ Best States ------------- Heat Dissipation 51 Energy Generation 31 Energy Capacity 770 Matter Stores 300 Matter Capacity 300 Sight Range 16 Terrain Scan Density 10 Base Temperature (-) 100 Armor Coverage 225 Resistance: TH 10 Weapon Cycling 15 Evasion (%) 55 Targeting Accuracy 5 Recoil Reduction 3 Relay Coupler Types 1 Relay Coupler Value 20 Authchip Count 1 Item Schematics ----------------- None Robot Schematics ------------------ None Fabricated ------------ Nothing Repaired ---------- Nothing Studied --------- Aluminum Leg | -8/Materials | Hacked Hvy. Particle Cannon | -8/Materials | Hacked Deuterium Engine | -6/Factory | Hacked Alien Tech Used ----------------- None Achievements -------------- Infiltrator Join The Dark Side You Will Be Upgraded Challenges ------------ None Game ------ Seed MiniRefineryArticulator Manual? 0 Play Time 01:09:13 Cumulative 35.7 hours Start 2026.02.06 @ 19:07:52 End 2026.02.06 @ 20:19:27 Sessions 1 Manual Loads 0 Difficulty Rogue Special Mode None Game No. 59 Rogue 59 Adventurer 0 Explorer 0 Win Type - Total 0 Types 0/0/0/0/0/0/0/0/0/0 Lore% 16 Gallery% 35 Achievement% 21 Wizard Run 0 Options --------- Layout 1 ASCII 0 Keyboard 0 Movement Mouse Keybinds 0 Fullscreen 2 Font 32/SmallcapsGlow Map View 77x35 Zoom Use 0% Tactical HUD 1 Map Filters NONE Filters NONE Steam 1 RUN: 170136f9-6b90-4f83-b51e-6ac604b3903a